[Event "Titled Tuesday Blitz May 10 Late 2022"]
[White "Danaci, Ege"]
[Black "Simonovic, Miroslav"]
[WhiteFideId "34506748"]
[BlackFideId "919152"]
[WhiteElo "1799"]
[BlackElo "2043"]
[Result "1-0"]
[Round "03"]
[TimeControl "180+1"]
[Date "2022.05.11"]
[WhiteClock "0:00:26"]
[BlackClock "0:00:01"]

1. e4 {[%clk 0:03:00]}  c5 {[%clk 0:02:59]} 2. Nc3 {[%clk 0:03:00]}  Nc6 {[%clk 0:03:00]} 3. g3 {[%clk 0:03:01]}  e5 {[%clk 0:03:00]} 4. Bg2 {[%clk 0:03:02]}  g6 {[%clk 0:03:01]} 5. d3 {[%clk 0:03:02]}  Bg7 {[%clk 0:03:02]} 6. f4 {[%clk 0:03:03]}  Nge7 {[%clk 0:03:02]} 7. Nh3 {[%clk 0:03:03]}  d6 {[%clk 0:02:59]} 8. O-O {[%clk 0:03:03]}  Bxh3 {[%clk 0:02:59]} 9. Bxh3 {[%clk 0:03:02]}  d5 {[%clk 0:02:38]} 10. fxe5 {[%clk 0:02:41]}  Nxe5 {[%clk 0:02:30]} 11. Bg5 {[%clk 0:02:36]}  dxe4 {[%clk 0:02:03]} 12. Nxe4 {[%clk 0:02:32]}  O-O {[%clk 0:01:54]} 13. Kh1 {[%clk 0:02:17]}  f6 {[%clk 0:01:40]} 14. Nxf6+ {[%clk 0:02:09]}  Bxf6 {[%clk 0:01:33]} 15. Bxf6 {[%clk 0:02:09]}  Rxf6 {[%clk 0:01:23]} 16. Rxf6 {[%clk 0:02:08]}  Nf5 {[%clk 0:01:24]} 17. Rxf5 {[%clk 0:01:53]}  gxf5 {[%clk 0:01:20]} 18. Bxf5 {[%clk 0:01:54]}  Qf6 {[%clk 0:01:00]} 19. Be4 {[%clk 0:01:27]}  Rf8 {[%clk 0:00:33]} 20. Qh5 {[%clk 0:01:23]}  Ng6 {[%clk 0:00:27]} 21. Bg2 {[%clk 0:01:20]}  Qxb2 {[%clk 0:00:23]} 22. Re1 {[%clk 0:00:47]}  Qd4 {[%clk 0:00:12]} 23. Qd5+ {[%clk 0:00:47]}  Qxd5 {[%clk 0:00:12]} 24. Bxd5+ {[%clk 0:00:48]}  Kg7 {[%clk 0:00:12]} 25. Kg2 {[%clk 0:00:46]}  b6 {[%clk 0:00:11]} 26. c4 {[%clk 0:00:46]}  Rf6 {[%clk 0:00:04]} 27. h4 {[%clk 0:00:45]}  Kf8 {[%clk 0:00:03]} 28. h5 {[%clk 0:00:45]}  Ne7 {[%clk 0:00:03]} 29. g4 {[%clk 0:00:42]}  Nxd5 {[%clk 0:00:03]} 30. cxd5 {[%clk 0:00:43]}  Rd6 {[%clk 0:00:03]} 31. Re5 {[%clk 0:00:43]}  Kf7 {[%clk 0:00:04]} 32. Kf3 {[%clk 0:00:42]}  b5 {[%clk 0:00:03]} 33. Ke4 {[%clk 0:00:40]}  h6 {[%clk 0:00:04]} 34. Rf5+ {[%clk 0:00:32]}  Kg7 {[%clk 0:00:03]} 35. Rf1 {[%clk 0:00:30]}  a5 {[%clk 0:00:03]} 36. Ke5 {[%clk 0:00:30]}  Rd8 {[%clk 0:00:02]} 37. d6 {[%clk 0:00:30]}  b4 {[%clk 0:00:01]} 38. Ke6 {[%clk 0:00:30]}  Re8+ {[%clk 0:00:01]} 39. Kd7 {[%clk 0:00:29]}  Re3 {[%clk 0:00:01]} 40. Rd1 {[%clk 0:00:26]} 1-0


[Site "https://www.chess.com"]

[Event "Titled Tuesday Blitz May 10 Late 2022"]
[White "Derraugh, Geordie"]
[Black "Dourerassou, Jonathan"]
[WhiteFideId "2603950"]
[BlackFideId "628050"]
[WhiteElo "2116"]
[BlackElo "2499"]
[Result "1-0"]
[Round "03"]
[TimeControl "180+1"]
[Date "2022.05.11"]
[WhiteClock "0:00:17"]
[BlackClock "0:01:29"]

1. e4 {[%clk 0:03:00]}  d5 {[%clk 0:03:00]} 2. exd5 {[%clk 0:03:00]}  Qxd5 {[%clk 0:03:00]} 3. Nf3 {[%clk 0:03:01]}  Qd8 {[%clk 0:03:01]} 4. Be2 {[%clk 0:03:01]}  Nf6 {[%clk 0:03:01]} 5. d4 {[%clk 0:03:01]}  Bg4 {[%clk 0:03:01]} 6. O-O {[%clk 0:03:02]}  e6 {[%clk 0:03:02]} 7. c4 {[%clk 0:03:02]}  c6 {[%clk 0:03:01]} 8. Nc3 {[%clk 0:03:02]}  Be7 {[%clk 0:03:01]} 9. Be3 {[%clk 0:03:01]}  O-O {[%clk 0:03:01]} 10. Qb3 {[%clk 0:02:59]}  Qc7 {[%clk 0:02:58]} 11. h3 {[%clk 0:02:58]}  Bh5 {[%clk 0:02:57]} 12. Rfd1 {[%clk 0:02:59]}  Nbd7 {[%clk 0:02:57]} 13. Rac1 {[%clk 0:02:59]}  Rad8 {[%clk 0:02:53]} 14. d5 {[%clk 0:02:53]}  exd5 {[%clk 0:02:52]} 15. cxd5 {[%clk 0:02:53]}  Ne5 {[%clk 0:02:45]} 16. Nb5 {[%clk 0:02:18]}  Nxf3+ {[%clk 0:02:37]} 17. Bxf3 {[%clk 0:02:18]}  Qe5 {[%clk 0:02:36]} 18. Bxh5 {[%clk 0:02:01]}  cxb5 {[%clk 0:02:34]} 19. Bf3 {[%clk 0:02:01]}  a6 {[%clk 0:02:34]} 20. a4 {[%clk 0:02:00]}  bxa4 {[%clk 0:02:33]} 21. Qxa4 {[%clk 0:02:01]}  Bd6 {[%clk 0:02:33]} 22. g3 {[%clk 0:01:59]}  Qf5 {[%clk 0:02:30]} 23. Kg2 {[%clk 0:01:57]}  Rc8 {[%clk 0:02:27]} 24. Qb3 {[%clk 0:01:49]}  b5 {[%clk 0:02:25]} 25. Rc6 {[%clk 0:01:48]}  Rfd8 {[%clk 0:02:17]} 26. Rxa6 {[%clk 0:01:41]}  h5 {[%clk 0:02:18]} 27. Qxb5 {[%clk 0:01:21]}  h4 {[%clk 0:02:18]} 28. Qd3 {[%clk 0:01:21]}  Qd7 {[%clk 0:02:03]} 29. Ra7 {[%clk 0:01:05]}  Rc7 {[%clk 0:01:57]} 30. Rxc7 {[%clk 0:01:03]}  Qxc7 {[%clk 0:01:58]} 31. gxh4 {[%clk 0:01:00]}  Nd7 {[%clk 0:01:57]} 32. Qf5 {[%clk 0:00:56]}  Ne5 {[%clk 0:01:56]} 33. Be4 {[%clk 0:00:55]}  Ng6 {[%clk 0:01:53]} 34. Bg5 {[%clk 0:00:44]}  Re8 {[%clk 0:01:53]} 35. Rc1 {[%clk 0:00:39]}  Qb7 {[%clk 0:01:41]} 36. Rc2 {[%clk 0:00:20]}  Re5 {[%clk 0:01:34]} 37. Qc8+ {[%clk 0:00:19]}  Qxc8 {[%clk 0:01:32]} 38. Rxc8+ {[%clk 0:00:20]}  Bf8 {[%clk 0:01:22]} 39. Bxg6 {[%clk 0:00:18]}  fxg6 {[%clk 0:01:23]} 40. d6 {[%clk 0:00:16]}  Rd5 {[%clk 0:01:23]} 41. Be7 {[%clk 0:00:16]}  Kf7 {[%clk 0:01:22]} 42. Rxf8+ {[%clk 0:00:16]}  Ke6 {[%clk 0:01:23]} 43. Rf3 {[%clk 0:00:16]}  g5 {[%clk 0:01:24]} 44. hxg5 {[%clk 0:00:16]}  g6 {[%clk 0:01:24]} 45. Rf6+ {[%clk 0:00:16]}  Kd7 {[%clk 0:01:25]} 46. Rxg6 {[%clk 0:00:17]}  Rd2 {[%clk 0:01:26]} 47. Rg8 {[%clk 0:00:17]}  Rd1 {[%clk 0:01:26]} 48. h4 {[%clk 0:00:17]}  Ke6 {[%clk 0:01:27]} 49. h5 {[%clk 0:00:18]}  Kf5 {[%clk 0:01:28]} 50. h6 {[%clk 0:00:18]}  Kg4 {[%clk 0:01:29]} 51. h7 {[%clk 0:00:18]}  Rd5 {[%clk 0:01:27]} 52. h8=Q {[%clk 0:00:18]}  Rf5 {[%clk 0:01:28]} 53. Qh3+ {[%clk 0:00:17]}  Kf4 {[%clk 0:01:29]} 54. Qe3+ {[%clk 0:00:16]}  Kg4 {[%clk 0:01:29]} 55. Qg3+ {[%clk 0:00:17]}  Kh5 {[%clk 0:01:29]} 56. Qh3# {[%clk 0:00:17]} 1-0


[Site "https://www.chess.com"]

[Event "Titled Tuesday Blitz May 10 Late 2022"]
[White "Donchenko, Alexander"]
[Black "Aggelis, Nikolaos"]
[WhiteFideId "24603295"]
[BlackFideId "4213220"]
[WhiteElo "2572"]
[BlackElo "2154"]
[Result "0-1"]
[Round "03"]
[TimeControl "180+1"]
[Date "2022.05.10"]
[WhiteClock "0:00:46"]
[BlackClock "0:00:23"]

1. e4 {[%clk 0:03:00]}  c5 {[%clk 0:02:59]} 2. Nf3 {[%clk 0:03:01]}  e6 {[%clk 0:02:59]} 3. Nc3 {[%clk 0:03:00]}  Nc6 {[%clk 0:02:53]} 4. Bb5 {[%clk 0:02:59]}  Nd4 {[%clk 0:02:46]} 5. O-O {[%clk 0:02:59]}  Nxb5 {[%clk 0:02:38]} 6. Nxb5 {[%clk 0:03:00]}  a6 {[%clk 0:02:38]} 7. Nc3 {[%clk 0:03:00]}  b5 {[%clk 0:02:39]} 8. d4 {[%clk 0:02:58]}  cxd4 {[%clk 0:02:38]} 9. Qxd4 {[%clk 0:02:58]}  Qc7 {[%clk 0:02:30]} 10. Re1 {[%clk 0:02:54]}  Bb7 {[%clk 0:02:20]} 11. Bg5 {[%clk 0:02:47]}  f6 {[%clk 0:02:06]} 12. Bh4 {[%clk 0:02:45]}  Bc5 {[%clk 0:02:06]} 13. Qd2 {[%clk 0:02:44]}  Ne7 {[%clk 0:01:57]} 14. Bg3 {[%clk 0:02:43]}  Qb6 {[%clk 0:01:52]} 15. a4 {[%clk 0:02:39]}  b4 {[%clk 0:01:50]} 16. Nd1 {[%clk 0:02:27]}  Rd8 {[%clk 0:01:45]} 17. Ne3 {[%clk 0:02:21]}  Bxe4 {[%clk 0:01:24]} 18. Nc4 {[%clk 0:02:20]}  Qc6 {[%clk 0:01:24]} 19. Nd4 {[%clk 0:02:14]}  Qd5 {[%clk 0:01:21]} 20. Rad1 {[%clk 0:02:03]}  e5 {[%clk 0:01:09]} 21. Nb3 {[%clk 0:01:45]}  Qxc4 {[%clk 0:01:06]} 22. Nxc5 {[%clk 0:01:45]}  Qxc5 {[%clk 0:01:04]} 23. Rxe4 {[%clk 0:01:44]}  a5 {[%clk 0:01:01]} 24. Qd6 {[%clk 0:01:09]}  Qxd6 {[%clk 0:00:59]} 25. Rxd6 {[%clk 0:01:10]}  Nc6 {[%clk 0:00:59]} 26. f4 {[%clk 0:01:08]}  Ke7 {[%clk 0:00:57]} 27. fxe5 {[%clk 0:01:08]}  fxe5 {[%clk 0:00:58]} 28. Rd5 {[%clk 0:01:08]}  d6 {[%clk 0:00:53]} 29. Rb5 {[%clk 0:01:02]}  Ke6 {[%clk 0:00:51]} 30. Rb6 {[%clk 0:00:59]}  Rc8 {[%clk 0:00:50]} 31. c3 {[%clk 0:00:55]}  bxc3 {[%clk 0:00:49]} 32. bxc3 {[%clk 0:00:56]}  Rhf8 {[%clk 0:00:39]} 33. h3 {[%clk 0:00:56]}  Rf7 {[%clk 0:00:39]} 34. Rc4 {[%clk 0:00:53]}  Rfc7 {[%clk 0:00:37]} 35. Rb5 {[%clk 0:00:50]}  Ne7 {[%clk 0:00:33]} 36. Rxc7 {[%clk 0:00:49]}  Rxc7 {[%clk 0:00:34]} 37. Rxa5 {[%clk 0:00:49]}  Rxc3 {[%clk 0:00:35]} 38. Ra8 {[%clk 0:00:48]}  Rxg3 {[%clk 0:00:33]} 39. a5 {[%clk 0:00:47]}  Ra3 {[%clk 0:00:33]} 40. a6 {[%clk 0:00:48]}  Nc6 {[%clk 0:00:28]} 41. Rg8 {[%clk 0:00:46]}  Kf6 {[%clk 0:00:25]} 42. Rf8+ {[%clk 0:00:46]}  Ke6 {[%clk 0:00:24]} 43. Rg8 {[%clk 0:00:47]}  Rxa6 {[%clk 0:00:25]} 44. Rxg7 {[%clk 0:00:47]}  Ra7 {[%clk 0:00:25]} 45. Rg8 {[%clk 0:00:47]}  Rd7 {[%clk 0:00:25]} 46. Kf2 {[%clk 0:00:46]}  d5 {[%clk 0:00:26]} 47. Ke3 {[%clk 0:00:47]}  d4+ {[%clk 0:00:26]} 48. Ke4 {[%clk 0:00:47]}  d3 {[%clk 0:00:25]} 49. Re8+ {[%clk 0:00:46]}  Kf6 {[%clk 0:00:24]} 50. Rc8 {[%clk 0:00:46]}  d2 {[%clk 0:00:25]} 51. Rxc6+ {[%clk 0:00:46]}  Ke7 {[%clk 0:00:23]} 0-1


[Site "https://www.chess.com"]

[Event "Titled Tuesday Blitz May 10 Late 2022"]
[White "Estrada Nieto, Julian"]
[Black "Yedidia, Daniel"]
[WhiteFideId "5101018"]
[BlackFideId "30905907"]
[WhiteElo "2252"]
[BlackElo "2609"]
[Result "0-1"]
[Round "03"]
[TimeControl "180+1"]
[Date "2022.05.11"]
[WhiteClock "0:00:20"]
[BlackClock "0:00:27"]

1. e4 {[%clk 0:03:00]}  e5 {[%clk 0:03:00]} 2. Nf3 {[%clk 0:03:00]}  Nc6 {[%clk 0:03:00]} 3. Bb5 {[%clk 0:03:00]}  a6 {[%clk 0:03:00]} 4. Ba4 {[%clk 0:03:01]}  Nf6 {[%clk 0:03:01]} 5. O-O {[%clk 0:03:00]}  Be7 {[%clk 0:03:02]} 6. Re1 {[%clk 0:02:59]}  b5 {[%clk 0:03:02]} 7. Bb3 {[%clk 0:02:59]}  O-O {[%clk 0:03:03]} 8. a4 {[%clk 0:02:59]}  b4 {[%clk 0:03:02]} 9. d4 {[%clk 0:02:55]}  d6 {[%clk 0:02:56]} 10. h3 {[%clk 0:02:43]}  Bb7 {[%clk 0:02:44]} 11. a5 {[%clk 0:02:39]}  Nd7 {[%clk 0:02:38]} 12. c3 {[%clk 0:02:34]}  bxc3 {[%clk 0:02:21]} 13. bxc3 {[%clk 0:02:31]}  exd4 {[%clk 0:02:21]} 14. cxd4 {[%clk 0:02:31]}  Rb8 {[%clk 0:02:22]} 15. Nc3 {[%clk 0:02:24]}  Bf6 {[%clk 0:02:16]} 16. Nd5 {[%clk 0:02:18]}  Re8 {[%clk 0:02:16]} 17. Nxf6+ {[%clk 0:02:15]}  Nxf6 {[%clk 0:02:16]} 18. Bg5 {[%clk 0:02:13]}  h6 {[%clk 0:02:14]} 19. Bh4 {[%clk 0:02:13]}  Nb4 {[%clk 0:01:26]} 20. Ra4 {[%clk 0:01:48]}  Bxe4 {[%clk 0:01:23]} 21. Qd2 {[%clk 0:01:23]}  Bxf3 {[%clk 0:01:02]} 22. Rxe8+ {[%clk 0:01:18]}  Qxe8 {[%clk 0:01:02]} 23. gxf3 {[%clk 0:01:17]}  Nbd5 {[%clk 0:00:58]} 24. Bc2 {[%clk 0:01:01]}  Qd7 {[%clk 0:00:46]} 25. Kh2 {[%clk 0:00:59]}  Nh5 {[%clk 0:00:35]} 26. Bg3 {[%clk 0:00:36]}  Nxg3 {[%clk 0:00:32]} 27. fxg3 {[%clk 0:00:35]}  Nf6 {[%clk 0:00:31]} 28. Ra1 {[%clk 0:00:30]}  Qc6 {[%clk 0:00:30]} 29. Re1 {[%clk 0:00:23]}  Qxf3 {[%clk 0:00:29]} 30. Qd3 {[%clk 0:00:20]}  Qf2+ {[%clk 0:00:27]} 0-1


[Site "https://www.chess.com"]

[Event "Titled Tuesday Blitz May 10 Late 2022"]
[White "Fedoseev, Vladimir"]
[Black "Demchenko, Anton"]
[WhiteFideId "24130737"]
[BlackFideId "4160258"]
[WhiteElo "2726"]
[BlackElo "2539"]
[Result "1-0"]
[Round "03"]
[TimeControl "180+1"]
[Date "2022.05.10"]
[WhiteClock "0:00:09"]
[BlackClock "0:00:01"]

1. Nf3 {[%clk 0:02:20]}  Nf6 {[%clk 0:03:00]} 2. g3 {[%clk 0:02:18]}  g6 {[%clk 0:03:00]} 3. Bg2 {[%clk 0:02:18]}  Bg7 {[%clk 0:03:01]} 4. O-O {[%clk 0:02:19]}  O-O {[%clk 0:03:02]} 5. c4 {[%clk 0:02:19]}  d6 {[%clk 0:03:02]} 6. d4 {[%clk 0:02:17]}  Nbd7 {[%clk 0:03:02]} 7. Nc3 {[%clk 0:02:16]}  e5 {[%clk 0:03:02]} 8. b3 {[%clk 0:02:16]}  Re8 {[%clk 0:03:02]} 9. Bb2 {[%clk 0:02:16]}  e4 {[%clk 0:03:02]} 10. Ne1 {[%clk 0:02:15]}  c6 {[%clk 0:02:58]} 11. Nc2 {[%clk 0:02:15]}  d5 {[%clk 0:02:58]} 12. cxd5 {[%clk 0:02:07]}  cxd5 {[%clk 0:02:58]} 13. f3 {[%clk 0:02:07]}  exf3 {[%clk 0:02:55]} 14. exf3 {[%clk 0:02:07]}  Nf8 {[%clk 0:02:55]} 15. Qd2 {[%clk 0:02:04]}  h5 {[%clk 0:02:56]} 16. Rae1 {[%clk 0:02:01]}  Ne6 {[%clk 0:02:54]} 17. f4 {[%clk 0:01:58]}  Nc7 {[%clk 0:02:37]} 18. Rxe8+ {[%clk 0:01:55]}  Qxe8 {[%clk 0:02:38]} 19. Ne3 {[%clk 0:01:55]}  Qd8 {[%clk 0:02:01]} 20. h3 {[%clk 0:01:48]}  b6 {[%clk 0:01:46]} 21. Rf2 {[%clk 0:01:33]}  Bb7 {[%clk 0:01:44]} 22. Qd3 {[%clk 0:01:31]}  Qd6 {[%clk 0:01:38]} 23. g4 {[%clk 0:01:14]}  hxg4 {[%clk 0:01:38]} 24. hxg4 {[%clk 0:01:15]}  Re8 {[%clk 0:01:38]} 25. Rf3 {[%clk 0:00:35]}  Ne4 {[%clk 0:01:31]} 26. g5 {[%clk 0:00:34]}  Ne6 {[%clk 0:01:22]} 27. Ne2 {[%clk 0:00:34]}  Nc7 {[%clk 0:01:12]} 28. Qd1 {[%clk 0:00:30]}  Ba6 {[%clk 0:01:06]} 29. Nc3 {[%clk 0:00:30]}  Qc6 {[%clk 0:00:45]} 30. Nxe4 {[%clk 0:00:26]}  dxe4 {[%clk 0:00:46]} 31. Rh3 {[%clk 0:00:25]}  Nd5 {[%clk 0:00:42]} 32. Nxd5 {[%clk 0:00:18]}  Qxd5 {[%clk 0:00:43]} 33. Qd2 {[%clk 0:00:18]}  Bc8 {[%clk 0:00:41]} 34. Re3 {[%clk 0:00:15]}  Bf5 {[%clk 0:00:41]} 35. Bf1 {[%clk 0:00:13]}  Qd6 {[%clk 0:00:39]} 36. Rg3 {[%clk 0:00:11]}  Rd8 {[%clk 0:00:36]} 37. Bc4 {[%clk 0:00:11]}  Bxd4+ {[%clk 0:00:32]} 38. Bxd4 {[%clk 0:00:11]}  Qxd4+ {[%clk 0:00:33]} 39. Qxd4 {[%clk 0:00:12]}  Rxd4 {[%clk 0:00:34]} 40. Rc3 {[%clk 0:00:12]}  Rd1+ {[%clk 0:00:29]} 41. Kf2 {[%clk 0:00:12]}  Rd2+ {[%clk 0:00:29]} 42. Ke3 {[%clk 0:00:12]}  Rxa2 {[%clk 0:00:18]} 43. Bd5 {[%clk 0:00:13]}  Ra5 {[%clk 0:00:19]} 44. Kd4 {[%clk 0:00:13]}  e3 {[%clk 0:00:07]} 45. Rxe3 {[%clk 0:00:12]}  Kf8 {[%clk 0:00:07]} 46. Rc3 {[%clk 0:00:12]}  Be6 {[%clk 0:00:03]} 47. Bxe6 {[%clk 0:00:10]}  fxe6 {[%clk 0:00:04]} 48. Rc7 {[%clk 0:00:10]}  Rf5 {[%clk 0:00:03]} 49. Ke4 {[%clk 0:00:11]}  Ra5 {[%clk 0:00:03]} 50. Rb7 {[%clk 0:00:10]}  Rb5 {[%clk 0:00:03]} 51. Rxa7 {[%clk 0:00:09]}  Kg8 {[%clk 0:00:03]} 52. Re7 {[%clk 0:00:09]}  Rxb3 {[%clk 0:00:02]} 53. Ke5 {[%clk 0:00:09]}  Rb4 {[%clk 0:00:02]} 54. Rxe6 {[%clk 0:00:08]}  Kg7 {[%clk 0:00:02]} 55. Re7+ {[%clk 0:00:08]}  Kf8 {[%clk 0:00:03]} 56. Rb7 {[%clk 0:00:08]}  Kg8 {[%clk 0:00:02]} 57. f5 {[%clk 0:00:08]}  gxf5 {[%clk 0:00:02]} 58. Kf6 {[%clk 0:00:08]}  Rc4 {[%clk 0:00:01]} 59. Rb8+ {[%clk 0:00:09]}  Kh7 {[%clk 0:00:01]} 60. g6+ {[%clk 0:00:09]} 1-0


[Site "https://www.chess.com"]

[Event "Titled Tuesday Blitz May 10 Late 2022"]
[White "Gatterer, Florian"]
[Black "Baches Garcia, Guillermo"]
[WhiteFideId "811688"]
[BlackFideId "2209764"]
[WhiteElo "2218"]
[BlackElo "2516"]
[Result "0-1"]
[Round "03"]
[TimeControl "180+1"]
[Date "2022.05.11"]
[WhiteClock "0:00:03"]
[BlackClock "0:00:10"]

1. Nf3 {[%clk 0:03:00]}  d5 {[%clk 0:02:59]} 2. d4 {[%clk 0:02:59]}  Nf6 {[%clk 0:02:59]} 3. Bf4 {[%clk 0:02:59]}  e6 {[%clk 0:02:59]} 4. e3 {[%clk 0:02:58]}  Bd6 {[%clk 0:03:00]} 5. Nbd2 {[%clk 0:02:59]}  c5 {[%clk 0:03:00]} 6. dxc5 {[%clk 0:02:56]}  Bxc5 {[%clk 0:02:57]} 7. Bd3 {[%clk 0:01:55]}  Nc6 {[%clk 0:02:55]} 8. O-O {[%clk 0:01:54]}  O-O {[%clk 0:02:52]} 9. Qe2 {[%clk 0:01:49]}  h6 {[%clk 0:02:44]} 10. h3 {[%clk 0:01:46]}  Re8 {[%clk 0:02:41]} 11. Ne5 {[%clk 0:01:45]}  Bd6 {[%clk 0:02:34]} 12. Ndf3 {[%clk 0:01:38]}  Qc7 {[%clk 0:02:32]} 13. Nxc6 {[%clk 0:01:16]}  bxc6 {[%clk 0:02:31]} 14. Bxd6 {[%clk 0:01:10]}  Qxd6 {[%clk 0:02:32]} 15. c4 {[%clk 0:01:06]}  e5 {[%clk 0:02:23]} 16. e4 {[%clk 0:01:04]}  d4 {[%clk 0:02:20]} 17. c5 {[%clk 0:00:59]}  Qxc5 {[%clk 0:02:18]} 18. Rfc1 {[%clk 0:00:59]}  Qd6 {[%clk 0:02:17]} 19. Rc2 {[%clk 0:00:58]}  Bd7 {[%clk 0:02:09]} 20. Rac1 {[%clk 0:00:58]}  Rab8 {[%clk 0:02:07]} 21. Kh1 {[%clk 0:00:55]}  Nh5 {[%clk 0:01:59]} 22. Nd2 {[%clk 0:00:45]}  Nf4 {[%clk 0:01:56]} 23. Qf3 {[%clk 0:00:45]}  Qf6 {[%clk 0:01:32]} 24. Nc4 {[%clk 0:00:44]}  c5 {[%clk 0:01:13]} 25. b3 {[%clk 0:00:40]}  Rec8 {[%clk 0:01:11]} 26. Bf1 {[%clk 0:00:37]}  Bc6 {[%clk 0:00:55]} 27. Kh2 {[%clk 0:00:35]}  Kf8 {[%clk 0:00:51]} 28. g3 {[%clk 0:00:26]}  Ne6 {[%clk 0:00:51]} 29. Qxf6 {[%clk 0:00:26]}  gxf6 {[%clk 0:00:52]} 30. Bd3 {[%clk 0:00:25]}  Ke7 {[%clk 0:00:50]} 31. f3 {[%clk 0:00:25]}  Rg8 {[%clk 0:00:48]} 32. Na5 {[%clk 0:00:20]}  Ba8 {[%clk 0:00:45]} 33. Bc4 {[%clk 0:00:19]}  Ng5 {[%clk 0:00:43]} 34. Rf2 {[%clk 0:00:15]}  h5 {[%clk 0:00:42]} 35. h4 {[%clk 0:00:15]}  Nh7 {[%clk 0:00:40]} 36. Bd3 {[%clk 0:00:13]}  Rbc8 {[%clk 0:00:39]} 37. Rfc2 {[%clk 0:00:12]}  Kd6 {[%clk 0:00:39]} 38. Nc4+ {[%clk 0:00:12]}  Ke7 {[%clk 0:00:38]} 39. Nd2 {[%clk 0:00:11]}  Kd6 {[%clk 0:00:37]} 40. Nc4+ {[%clk 0:00:11]}  Kc6 {[%clk 0:00:37]} 41. Na5+ {[%clk 0:00:11]}  Kb6 {[%clk 0:00:37]} 42. Nc4+ {[%clk 0:00:11]}  Kc7 {[%clk 0:00:35]} 43. Nd2 {[%clk 0:00:10]}  Kd7 {[%clk 0:00:30]} 44. Rxc5 {[%clk 0:00:10]}  Rxc5 {[%clk 0:00:30]} 45. Rxc5 {[%clk 0:00:11]}  Nf8 {[%clk 0:00:29]} 46. Ra5 {[%clk 0:00:10]}  Ne6 {[%clk 0:00:28]} 47. Rxa7+ {[%clk 0:00:10]}  Nc7 {[%clk 0:00:28]} 48. Nc4 {[%clk 0:00:08]}  Kc6 {[%clk 0:00:27]} 49. Ra3 {[%clk 0:00:06]}  Nb5 {[%clk 0:00:17]} 50. Ra5 {[%clk 0:00:05]}  Nc3 {[%clk 0:00:16]} 51. Kg2 {[%clk 0:00:05]}  Kb7 {[%clk 0:00:15]} 52. Kf2 {[%clk 0:00:05]}  Rd8 {[%clk 0:00:13]} 53. Ra3 {[%clk 0:00:03]}  f5 {[%clk 0:00:13]} 54. Na5+ {[%clk 0:00:03]}  Kb6 {[%clk 0:00:13]} 55. exf5 {[%clk 0:00:02]}  e4 {[%clk 0:00:12]} 56. Bxe4 {[%clk 0:00:02]}  Bxe4 {[%clk 0:00:12]} 57. fxe4 {[%clk 0:00:02]}  d3 {[%clk 0:00:12]} 58. Nc4+ {[%clk 0:00:01]}  Kc5 {[%clk 0:00:12]} 59. Nd2 {[%clk 0:00:02]}  Kb4 {[%clk 0:00:10]} 60. Ra7 {[%clk 0:00:02]}  Nd1+ {[%clk 0:00:11]} 61. Kf3 {[%clk 0:00:01]}  Kc3 {[%clk 0:00:10]} 62. Rb7 {[%clk 0:00:02]}  Kxd2 {[%clk 0:00:10]} 63. Kf4 {[%clk 0:00:02]}  Nc3 {[%clk 0:00:09]} 64. Kg5 {[%clk 0:00:03]}  Kc2 {[%clk 0:00:10]} 65. Rxf7 {[%clk 0:00:04]}  d2 {[%clk 0:00:10]} 66. Rc7 {[%clk 0:00:05]}  d1=Q {[%clk 0:00:10]} 67. f6 {[%clk 0:00:05]}  Qf3 {[%clk 0:00:10]} 68. Kg6 {[%clk 0:00:05]}  Kd3 {[%clk 0:00:10]} 69. f7 {[%clk 0:00:04]}  Nxe4 {[%clk 0:00:10]} 70. f8=Q {[%clk 0:00:03]}  Qxf8 {[%clk 0:00:10]} 71. Rd7+ {[%clk 0:00:03]}  Rxd7 {[%clk 0:00:10]} 72. b4 {[%clk 0:00:04]}  Qf6+ {[%clk 0:00:10]} 73. Kxh5 {[%clk 0:00:03]}  Rd5+ {[%clk 0:00:10]} 74. Kg4 {[%clk 0:00:03]}  Qf5# {[%clk 0:00:10]} 0-1


[Site "https://www.chess.com"]

[Event "Titled Tuesday Blitz May 10 Late 2022"]
[White "Gurevich, Dmitry"]
[Black "Antonova, Nadezhda"]
[WhiteFideId "2000407"]
[BlackFideId "14700182"]
[WhiteElo "2506"]
[BlackElo "1743"]
[Result "1-0"]
[Round "03"]
[TimeControl "180+1"]
[Date "2022.05.11"]
[WhiteClock "0:01:33"]
[BlackClock "0:01:37"]

1. d4 {[%clk 0:03:00]}  Nf6 {[%clk 0:02:57]} 2. c4 {[%clk 0:03:00]}  g6 {[%clk 0:02:58]} 3. Nc3 {[%clk 0:02:59]}  Bg7 {[%clk 0:02:58]} 4. e4 {[%clk 0:02:59]}  d6 {[%clk 0:02:58]} 5. Nf3 {[%clk 0:02:59]}  O-O {[%clk 0:02:59]} 6. Be2 {[%clk 0:02:59]}  e5 {[%clk 0:02:59]} 7. O-O {[%clk 0:02:58]}  Nc6 {[%clk 0:02:59]} 8. d5 {[%clk 0:02:57]}  Ne7 {[%clk 0:02:59]} 9. Ne1 {[%clk 0:02:55]}  Nd7 {[%clk 0:03:00]} 10. Be3 {[%clk 0:02:55]}  f5 {[%clk 0:03:00]} 11. f3 {[%clk 0:02:55]}  f4 {[%clk 0:03:00]} 12. Bf2 {[%clk 0:02:55]}  g5 {[%clk 0:03:01]} 13. Nb5 {[%clk 0:02:55]}  a6 {[%clk 0:03:00]} 14. Na7 {[%clk 0:02:54]}  Rxa7 {[%clk 0:02:49]} 15. Bxa7 {[%clk 0:02:52]}  b6 {[%clk 0:02:48]} 16. b4 {[%clk 0:02:50]}  Bb7 {[%clk 0:02:47]} 17. Rc1 {[%clk 0:02:47]}  Qa8 {[%clk 0:02:46]} 18. c5 {[%clk 0:02:45]}  Qxa7 {[%clk 0:02:44]} 19. c6 {[%clk 0:02:44]}  Nf6 {[%clk 0:02:36]} 20. cxb7 {[%clk 0:02:44]}  Qxb7 {[%clk 0:02:37]} 21. Nd3 {[%clk 0:02:35]}  h5 {[%clk 0:02:36]} 22. Nf2 {[%clk 0:02:33]}  Kh7 {[%clk 0:02:31]} 23. Qd3 {[%clk 0:02:32]}  Rg8 {[%clk 0:02:30]} 24. Qxa6 {[%clk 0:02:29]}  Qb8 {[%clk 0:02:29]} 25. Qc4 {[%clk 0:02:28]}  Ne8 {[%clk 0:02:28]} 26. Kh1 {[%clk 0:02:25]}  Qc8 {[%clk 0:02:23]} 27. Qa6 {[%clk 0:02:16]}  Qd8 {[%clk 0:02:22]} 28. Qa7 {[%clk 0:02:11]}  Nc8 {[%clk 0:02:16]} 29. Qb7 {[%clk 0:02:07]}  Bf6 {[%clk 0:02:13]} 30. Bb5 {[%clk 0:02:04]}  Rg7 {[%clk 0:02:07]} 31. Qc6 {[%clk 0:01:56]}  Re7 {[%clk 0:02:02]} 32. Rc2 {[%clk 0:01:54]}  Na7 {[%clk 0:02:01]} 33. Qc4 {[%clk 0:01:52]}  Nxb5 {[%clk 0:02:00]} 34. Qxb5 {[%clk 0:01:52]}  Rg7 {[%clk 0:02:00]} 35. h3 {[%clk 0:01:51]}  Qe7 {[%clk 0:01:49]} 36. Rfc1 {[%clk 0:01:48]}  Qf8 {[%clk 0:01:47]} 37. Qe2 {[%clk 0:01:46]}  Qg8 {[%clk 0:01:43]} 38. a4 {[%clk 0:01:44]}  Bd8 {[%clk 0:01:44]} 39. a5 {[%clk 0:01:44]}  Nf6 {[%clk 0:01:44]} 40. a6 {[%clk 0:01:38]}  g4 {[%clk 0:01:43]} 41. fxg4 {[%clk 0:01:36]}  hxg4 {[%clk 0:01:43]} 42. Nxg4 {[%clk 0:01:35]}  Nxg4 {[%clk 0:01:43]} 43. hxg4 {[%clk 0:01:35]}  Rxg4 {[%clk 0:01:43]} 44. Rc3 {[%clk 0:01:35]}  Rg3 {[%clk 0:01:39]} 45. Rxg3 {[%clk 0:01:34]}  fxg3 {[%clk 0:01:39]} 46. Qh5+ {[%clk 0:01:33]}  Kg7 {[%clk 0:01:37]} 47. Qg4+ {[%clk 0:01:33]} 1-0


[Site "https://www.chess.com"]